fUSD/lending_fUSD_20240331
["ID","MTS","AMOUNT","RATE_DAILY","PERIOD"]
[321152185,1711913447099,-500.0,0.00055615,120]
[321152187,1711913447112,-500.0,0.00055615,120]
[321152190,1711913447122,-500.0,0.00055615,120]
[321152191,1711913447130,-500.0,0.00055615,120]
[321152192,1711913447139,-500.0,0.00055615,120]
[321152193,1711913447148,-635.26,0.00055615,120]
[321152194,1711913447157,-500.0,0.00055615,120]
[321152195,1711913447166,-500.0,0.00055615,120]
[321152196,1711913447175,-749.99,0.00055615,120]
[321152197,1711913447184,-517.15,0.00055615,120]
[321152198,1711913447193,-500.0,0.00055615,120]
[321152199,1711913447201,-500.0,0.00055615,120]
[321152201,1711913447210,-500.0,0.00055615,120]
[321152203,1711913447219,-500.0,0.00055615,120]
[321152205,1711913447228,-559.17,0.00055615,120]
[321152207,1711913447238,-500.0,0.00055615,120]
[321152208,1711913447247,-558.63,0.00055615,120]
[321152210,1711913447257,-500.0,0.00055615,120]
[321152212,1711913447266,-500.0,0.00055615,120]
[321152214,1711913447276,-500.0,0.00055615,120]
[321152216,1711913447285,-500.0,0.00055615,120]
[321152218,1711913447295,-1036.4,0.00055615,120]
[321152220,1711913447305,-500.0,0.00055615,120]
[321152222,1711913447314,-516.34,0.00055615,120]
[321152224,1711913447324,-500.0,0.00055615,120]
[321152226,1711913447333,-500.0,0.00055615,120]
[321152229,1711913447343,-500.0,0.00055615,120]
[321152231,1711913447353,-500.0,0.00055615,120]
[321152232,1711913447364,-500.0,0.00055615,120]
[321152235,1711913447375,-517.1,0.00055615,120]
[321152237,1711913447385,-500.0,0.00055615,120]
[321152239,1711913447394,-500.0,0.00055615,120]
[321152244,1711913447436,-500.0,0.00055615,120]
[321152246,1711913447445,-500.0,0.00055615,120]
[321152248,1711913447454,-500.0,0.00055615,120]
[321152250,1711913447464,-500.0,0.00055615,120]
[321152252,1711913447473,-500.0,0.00055615,120]
[321152254,1711913447482,-500.0,0.00055615,120]
[321152256,1711913447491,-595.12,0.00055615,120]
[321152258,1711913447501,-500.0,0.00055615,120]
[321152260,1711913447510,-500.0,0.00055616,120]
[321152262,1711913447519,-644.63175783,0.00055616,120]
[321152264,1711913447528,-500.0,0.00055616,120]
[321152266,1711913447537,-500.0,0.00055616,120]
[321152268,1711913447546,-500.0,0.00055616,120]
[321152270,1711913447555,-500.0,0.00055616,120]
[321152272,1711913447565,-500.0,0.00055616,120]
[321152275,1711913447574,-500.0,0.00055616,120]
[321152277,1711913447584,-500.0,0.00055616,120]
[321152279,1711913447593,-500.0,0.00055616,120]
[321152281,1711913447602,-500.0,0.00055616,120]
[321152283,1711913447611,-174.84576923,0.00055885,2]
[321152285,1711913447620,-500.0,0.00055888,120]
[321152286,1711913447629,-1013.89,0.00055888,120]
[321152288,1711913447639,-500.0,0.00055888,120]
[321152290,1711913447649,-1456.82,0.00055888,120]
[321152293,1711913447658,-1767.17,0.00055888,120]
[321152295,1711913447667,-500.0,0.00055888,120]
[321152296,1711913447677,-500.0,0.00055888,120]
[321152298,1711913447686,-1254.98,0.00055888,120]
[321152300,1711913447695,-750.81,0.00055888,120]
[321152302,1711913447704,-2145.44,0.00055888,120]
[321152304,1711913447714,-1078.55,0.00055888,120]
[321152306,1711913447723,-761.68,0.00055888,120]
[321152308,1711913447732,-659.98,0.00055888,120]
[321152310,1711913447741,-1062.45,0.00055888,120]
[321152312,1711913447751,-500.0,0.00055888,120]
[321152314,1711913447760,-500.0,0.00055888,120]
[321152317,1711913447769,-2097.91,0.00055888,120]
[321152318,1711913447778,-500.0,0.00055888,120]
[321152320,1711913447787,-500.0,0.00055888,120]
[321152322,1711913447796,-1471.31,0.00055888,120]
[321152324,1711913447806,-500.0,0.00055888,120]
[321152326,1711913447815,-1312.2,0.00055888,120]
[321152328,1711913447824,-2545.02,0.00055888,120]
[321152330,1711913447833,-687.83,0.00055888,120]
[321152332,1711913447842,-500.0,0.00055888,120]
[321152335,1711913447851,-500.0,0.00055888,120]
[321152337,1711913447860,-1122.66,0.00055888,120]
[321152338,1711913447869,-3248.14,0.00055888,120]
[321152340,1711913447878,-3458.37,0.00055888,120]
[321152342,1711913447888,-500.0,0.00055888,120]
[321152344,1711913447897,-841.18,0.00055888,120]
[321152346,1711913447906,-581.15,0.00055888,120]
[321152348,1711913447915,-500.0,0.00055888,120]
[321152350,1711913447924,-500.0,0.00055888,120]
[321152352,1711913447933,-500.0,0.00055888,120]
[321152354,1711913447942,-500.0,0.00055888,120]
[321152357,1711913447951,-500.0,0.00055888,120]
[321152359,1711913447961,-895.33,0.00055888,120]
[321152361,1711913447970,-2140.41,0.00055888,120]
[321152363,1711913447978,-2984.57,0.00055888,120]
[321152365,1711913447987,-1683.3,0.00055888,120]
[321152366,1711913447997,-500.0,0.00055888,120]
[321152368,1711913448006,-4650.69,0.00055888,120]
[321152371,1711913448015,-6008.9,0.00055888,120]
[321152373,1711913448024,-828.94,0.00055888,120]
[321152375,1711913448033,-500.0,0.00055888,120]
[321152377,1711913448042,-519.56,0.00055888,120]
[321152378,1711913448051,-800.2,0.00055888,21]
[321152380,1711913448060,-500.0,0.00055888,120]
[321152383,1711913448069,-500.0,0.00055889,120]
[321152384,1711913448078,-150.0,0.00055889,120]
[321152386,1711913448088,-500.0,0.00055889,120]
[321152389,1711913448098,-500.0,0.00055889,120]
[321152390,1711913448109,-500.0,0.00055889,120]
[321152392,1711913448118,-500.0,0.00055889,120]
[321152394,1711913448127,-500.0,0.00055889,120]
[321152396,1711913448138,-500.0,0.00055889,120]
[321152399,1711913448147,-402.01,0.00055889,120]
[321152401,1711913448159,-500.0,0.00055889,120]
[321152402,1711913448168,-500.0,0.00055889,120]
[321152405,1711913448178,-500.0,0.00055889,120]
[321152407,1711913448188,-500.0,0.00055889,120]
[321152409,1711913448198,-500.0,0.00055889,120]
[321152410,1711913448207,-500.0,0.00055889,120]
[321152412,1711913448217,-599.2,0.00055889,120]
[321152414,1711913448225,-500.0,0.00055889,120]
[321152416,1711913448235,-500.0,0.00055889,120]
[321152419,1711913448244,-567.91,0.00055889,120]
[321152421,1711913448253,-1122.84,0.00055889,120]
[321152422,1711913448262,-500.0,0.00055889,120]
[321152425,1711913448273,-500.0,0.00055889,120]
[321152426,1711913448282,-904.76,0.00055889,120]
[321152429,1711913448291,-912.68,0.00055889,120]
[321152430,1711913448301,-500.0,0.00055889,120]
[321152433,1711913448310,-1061.04,0.00055889,120]
[321152434,1711913448319,-4820.55,0.00055889,120]
[321152436,1711913448328,-500.0,0.00055889,120]
[321152438,1711913448337,-500.0,0.00055889,120]
[321152440,1711913448346,-500.0,0.00055889,120]
[321152442,1711913448355,-523.33,0.00055889,120]
[321152444,1711913448364,-2252.0,0.00055889,120]
[321152446,1711913448373,-624.57881246,0.00055889,120]
[321152448,1711913448382,-3278.55,0.00055889,120]
[321152450,1711913448391,-500.0,0.00055889,120]
[321152452,1711913448399,-500.0,0.00055889,120]
[321152454,1711913448409,-500.0,0.00055889,120]
[321152456,1711913448418,-500.0,0.00055889,120]
[321152458,1711913448427,-500.0,0.00055889,120]
[321152460,1711913448436,-624.06,0.00055889,120]
[321152462,1711913448445,-655.16,0.00055889,120]
[321152464,1711913448454,-500.0,0.00055889,120]
[321152466,1711913448463,-500.0,0.00055889,120]
[321152468,1711913448473,-500.0,0.00055889,120]
[321152470,1711913448483,-500.0,0.00055889,120]
[321152472,1711913448492,-500.0,0.00055889,120]
[321152474,1711913448500,-500.0,0.00055889,120]
[321152476,1711913448509,-635.26,0.00055889,120]
[321152478,1711913448519,-500.0,0.00055889,120]
[321152480,1711913448528,-500.0,0.00055889,120]
[321152482,1711913448537,-749.99,0.00055889,120]
[321152484,1711913448546,-517.15,0.00055889,120]
[321152486,1711913448555,-500.0,0.00055889,120]
[321152488,1711913448564,-500.0,0.00055889,120]
[321152490,1711913448574,-500.0,0.00055889,120]
[321152493,1711913448584,-500.0,0.00055889,120]
[321152495,1711913448593,-559.17,0.00055889,120]
[321152497,1711913448602,-500.0,0.00055889,120]
[321152499,1711913448611,-558.63,0.00055889,120]
[321152501,1711913448619,-500.0,0.00055889,120]
[321152503,1711913448628,-500.0,0.00055889,120]
[321152504,1711913448637,-500.0,0.00055889,120]
[321152506,1711913448646,-1036.4,0.00055889,120]
[321152508,1711913448655,-500.0,0.00055889,120]
[321152511,1711913448665,-516.34,0.00055889,120]
[321152513,1711913448674,-500.0,0.00055889,120]
[321152515,1711913448683,-500.0,0.00055889,120]
[321152517,1711913448693,-625.93359422,0.00055889,120]
[321152519,1711913448702,-500.0,0.00055889,120]
[321152521,1711913448712,-500.0,0.00055889,120]
[321152523,1711913448721,-517.1,0.00055889,120]
[321152525,1711913448730,-500.0,0.00055889,120]
[321152527,1711913448739,-500.0,0.00055889,120]
[321152528,1711913448748,-500.0,0.00055889,120]
[321152530,1711913448758,-500.0,0.00055889,120]
[321152533,1711913448767,-595.12,0.00055889,120]
[321152535,1711913448778,-500.0,0.0005589,120]
[321152537,1711913448787,-500.0,0.0005589,120]
[321152538,1711913448797,-500.0,0.0005589,120]
[321152541,1711913448807,-500.0,0.0005589,120]
[321152543,1711913448816,-524.27,0.0005589,120]
[321152545,1711913448825,-500.0,0.0005589,120]
[321152547,1711913448835,-500.0,0.0005589,120]
[321152548,1711913448845,-611.8,0.0005589,120]
[321152550,1711913448855,-500.0,0.0005589,120]
[321152552,1711913448864,-500.0,0.0005589,120]
[321152554,1711913448873,-1068.25793783,0.00056059,2]
[321152557,1711913448882,-174.4066475,0.00056063,2]
[321152559,1711913448891,-5191.52189777,0.0005607,2]
[321152561,1711913448900,-500.0,0.00056162,120]
[321152562,1711913448909,-1013.89,0.00056162,120]
[321152564,1711913448918,-500.0,0.00056162,120]
[321152567,1711913448928,-1456.82,0.00056162,120]
[321152568,1711913448937,-1767.17,0.00056162,120]
[321152570,1711913448946,-500.0,0.00056162,120]
[321152572,1711913448955,-500.0,0.00056162,120]
[321152574,1711913448966,-1254.98,0.00056162,120]
[321152576,1711913448975,-750.81,0.00056162,120]
[321152579,1711913448984,-2145.44,0.00056162,120]
[321152580,1711913448993,-1078.55,0.00056162,120]
[321152581,1711913449003,-761.68,0.00056162,120]
[321152582,1711913449012,-659.98,0.00056162,120]
[321152583,1711913449021,-1062.45,0.00056162,120]
[321152584,1711913449030,-500.0,0.00056162,120]
[321152585,1711913449040,-500.0,0.00056162,120]
[321152586,1711913449049,-2097.91,0.00056162,120]
[321152588,1711913449058,-500.0,0.00056162,120]
[321152589,1711913449067,-1471.31,0.00056162,120]
[321152591,1711913449076,-500.0,0.00056162,120]
[321152593,1711913449085,-1312.2,0.00056162,120]
[321152596,1711913449095,-2545.02,0.00056162,120]
[321152598,1711913449108,-687.83,0.00056162,120]
[321152600,1711913449117,-500.0,0.00056162,120]
[321152602,1711913449126,-500.0,0.00056162,120]
[321152604,1711913449135,-1122.66,0.00056162,120]
[321152606,1711913449144,-3248.14,0.00056162,120]
[321152608,1711913449153,-3458.37,0.00056162,120]
[321152610,1711913449162,-500.0,0.00056162,120]
[321152612,1711913449171,-841.18,0.00056162,120]
[321152614,1711913449180,-581.15,0.00056162,120]
[321152616,1711913449189,-500.0,0.00056162,120]
[321152618,1711913449198,-500.0,0.00056162,120]
[321152620,1711913449208,-500.0,0.00056162,120]
[321152622,1711913449218,-500.0,0.00056162,120]
[321152624,1711913449227,-500.0,0.00056162,120]
[321152626,1711913449236,-895.33,0.00056162,120]
[321152628,1711913449245,-2140.41,0.00056162,120]
[321152630,1711913449254,-2984.57,0.00056162,120]
[321152632,1711913449263,-1683.3,0.00056162,120]
[321152634,1711913449272,-500.0,0.00056162,120]
[321152636,1711913449281,-4650.69,0.00056162,120]
[321152638,1711913449290,-6008.9,0.00056162,120]
[321152640,1711913449299,-828.94,0.00056162,120]
[321152642,1711913449308,-500.0,0.00056162,120]
[321152644,1711913449317,-519.56,0.00056162,120]
[321152646,1711913449326,-800.2,0.00056162,21]
[321152648,1711913449335,-500.0,0.00056162,120]
[321152650,1711913449344,-150.0,0.00056163,120]
[321152652,1711913449354,-500.0,0.00056163,120]
[321152653,1711913449364,-500.0,0.00056163,120]
[321152655,1711913449373,-500.0,0.00056163,120]
[321152657,1711913449383,-500.0,0.00056163,120]
[321152659,1711913449391,-500.0,0.00056163,120]
[321152661,1711913449401,-500.0,0.00056163,120]
[321152663,1711913449410,-500.0,0.00056163,120]
[321152665,1711913449421,-500.0,0.00056163,120]
[321152667,1711913449430,-500.0,0.00056163,120]
[321152670,1711913449439,-500.0,0.00056163,120]
[321152671,1711913449448,-500.0,0.00056163,120]
[321152673,1711913449457,-234.24873309,0.00056163,120]
[321152688,1711913449581,-364.95126691,0.00056163,120]
[321152690,1711913449590,-500.0,0.00056163,120]
[321152692,1711913449599,-39.09351369,0.00056163,120]
[321152696,1711913449630,-249.19049051,0.00055889,120]
[321152698,1711913449639,-460.90648631,0.00056163,120]
[321152700,1711913449648,-567.91,0.00056163,120]
[321152702,1711913449658,-1122.84,0.00056163,120]
[321152704,1711913449667,-500.0,0.00056163,120]
[321152706,1711913449676,-500.0,0.00056163,120]
[321152708,1711913449686,-904.76,0.00056163,120]
[321152710,1711913449695,-912.68,0.00056163,120]
[321152712,1711913449705,-199.2673311,0.00056163,120]
[321152714,1711913449722,-300.7326689,0.00056163,120]
[321152716,1711913449731,-1061.04,0.00056163,120]
[321152719,1711913449741,-4820.55,0.00056163,120]
[321152721,1711913449750,-500.0,0.00056163,120]
[321152723,1711913449760,-341.57344735,0.00056163,120]
[321152725,1711913449772,-158.42655265,0.00056163,120]
[321152727,1711913449781,-500.0,0.00056163,120]
[321152729,1711913449791,-523.33,0.00056163,120]
[321152731,1711913449801,-2252.0,0.00056163,120]
[321152733,1711913449811,-2596.84644716,0.00056163,120]
[321152735,1711913449822,-681.70355284,0.00056163,120]
[321152737,1711913449831,-500.0,0.00056163,120]
[321152739,1711913449841,-500.0,0.00056163,120]
[321152741,1711913449850,-500.0,0.00056163,120]
[321152743,1711913449860,-500.0,0.00056163,120]
[321152745,1711913449869,-500.0,0.00056163,120]
[321152748,1711913449879,-655.16,0.00056163,120]
[321152749,1711913449888,-500.0,0.00056163,120]
[321152751,1711913449897,-590.57296392,0.00056163,120]
[321152753,1711913449907,-500.0,0.00056163,120]
[321152755,1711913449916,-490.33342507,0.00056163,120]
[321152767,1711913450048,-500.0,0.00055066,120]
[321152769,1711913450057,-500.0,0.0005534,120]
[321152771,1711913450066,-262.02,0.00055344,2]
[321152773,1711913450076,-500.0,0.00055614,120]
[321152774,1711913450086,-500.0,0.00055888,120]
[321152776,1711913450095,-500.0,0.00056162,120]
[321152778,1711913450105,-9.66657493,0.00056163,120]
[321152780,1711913450118,-498.51718748,0.00056163,120]
[321152782,1711913450127,-635.26,0.00056163,120]
[321152784,1711913450137,-124.44183559,0.00056163,120]
[321152787,1711913450166,-175.3815172,0.00055066,4]
[321152789,1711913450175,-375.55816441,0.00056163,120]
[321152791,1711913450185,-749.99,0.00056163,120]
[321152793,1711913450195,-517.15,0.00056163,120]
[321152795,1711913450205,-500.0,0.00056163,120]
[321152796,1711913450217,-500.0,0.00056163,120]
[321152798,1711913450226,-500.0,0.00056163,120]
[321152800,1711913450235,-559.17,0.00056163,120]
[321152802,1711913450244,-500.0,0.00056163,120]
[321152803,1711913450254,-558.63,0.00056163,120]
[321152805,1711913450263,-500.0,0.00056163,120]
[321152807,1711913450273,-500.0,0.00056163,120]
[321152809,1711913450282,-1036.4,0.00056163,120]
[321152811,1711913450292,-230.95863825,0.00056163,120]
[321152813,1711913450302,-516.34,0.00056163,120]
[321152814,1711913450312,-500.0,0.00056163,120]
[321152816,1711913450322,-500.0,0.00056163,120]
[321152818,1711913450332,-517.1,0.00056163,120]
[321152820,1711913450342,-500.0,0.00056163,120]
[321152822,1711913450352,-500.0,0.00056163,120]
[321152823,1711913450362,-449.50138014,0.00056163,120]
[321152962,1711914632513,-155.0,0.00032971,4]
[321152963,1711914632524,-155.0,0.00032972,3]
[321152964,1711914632534,-350.0,0.00033,3]
[321152965,1711914632544,-400.0,0.00035,3]
[321152966,1711914632554,-201.56609599,0.00037,3]
[321152967,1711914632566,-248.43390401,0.00037,3]
[321152968,1711914632576,-168.12455337,0.00037708,2]
[321152969,1711914632585,-160.85,0.00037808,2]
[321152970,1711914632595,-153.68,0.00037808,2]
[321152971,1711914632604,-500.0,0.00039,3]
[321152972,1711914632614,-600.0,0.0004,41]
[321152973,1711914632623,-550.0,0.00041,3]
[321152974,1711914632634,-611.4,0.00041,2]
[321152975,1711914632643,-152.42,0.000428,4]
[321152976,1711914632652,-154.08,0.000428,4]
[321152977,1711914632661,-154.08,0.000428,4]
[321152978,1711914632671,-154.08,0.000428,4]
[321152979,1711914632681,-154.08,0.000428,4]
[321152980,1711914632690,-603.26703052,0.00043,4]
[321152981,1711914632700,-600.0,0.00043,3]
[321152982,1711914632709,-241.77,0.00043178,2]
[321152983,1711914632719,-153.68,0.00043318,2]
[321152984,1711914632728,-650.0,0.00045,3]
[321152986,1711914632738,-39960.87543987,0.00045,2]
[321152988,1711914632747,-115085.97817438,0.00045,14]
[321152990,1711914632759,-26511.79128933,0.00045,14]
[321152992,1711914632771,-453.51,0.00045,14]
[321153118,1711914640387,-400.0,0.00045,14]
[321153125,1711914640443,-2300.32999983,0.00045,14]
[321153127,1711914640456,-1822.86163447,0.00045,14]
[321153136,1711914643374,-1731.75890199,0.00045,14]
[321153137,1711914643384,-854.6063503,0.00045342,2]
[321153138,1711914643394,-241.77,0.00045442,2]
[321153139,1711914643404,-156.29,0.0004557,2]
[321153140,1711914643413,-205.18,0.00046446,15]
[321153141,1711914643422,-225.48,0.00046593,2]
[321153142,1711914643431,-160.0,0.00046972,2]
[321153143,1711914643440,-700.0,0.00047,3]
[321153144,1711914643451,-435.8,0.00047233,120]
[321153145,1711914643462,-854.60635026,0.00047493,2]
[321153146,1711914643471,-241.77,0.00047705,2]
[321153147,1711914643481,-152.42,0.000484,6]
[321153148,1711914643490,-152.42,0.000484,6]
[321153149,1711914643501,-154.08,0.000484,6]
[321153150,1711914643510,-154.08,0.000484,6]
[321153151,1711914643519,-154.08,0.000484,6]
[321153152,1711914643530,-154.08,0.000484,6]
[321153153,1711914643539,-153.68,0.00048828,2]
[321153154,1711914643548,-614.49365488,0.00049,3]
[321153155,1711914643838,-135.50634512,0.00049,3]
[321153156,1711914643848,-8.37959685,0.00049186,15]
[321153157,1711914643869,-196.80040315,0.00049186,15]
[321153158,1711914643878,-854.60635026,0.00049644,2]
[321153159,1711914643888,-241.77,0.00049969,2]
[321153160,1711914643897,-151.0,0.0005,120]
[321153161,1711914643906,-440.12783223,0.00050791,30]
[321153162,1711914643915,-800.0,0.00051,3]
[321153163,1711914643926,-854.60635026,0.00051795,2]
[321153164,1711914643935,-205.18,0.00051926,120]
[321153165,1711914643944,-500.0,0.00052,120]
[321153166,1711914643954,-500.0,0.00052,120]
[321153167,1711914643963,-430.84,0.00052163,120]
[321153168,1711914643973,-241.77,0.00052233,2]
[321153169,1711914643983,-501.06900593,0.000527,117]
[321153182,1711914646337,-1974.40000004,0.000527,117]
[321153183,1711914646398,-1149.73099403,0.000527,117]
[321153184,1711914646407,-42.19552227,0.00053,3]
[321153185,1711914646637,-807.80447773,0.00053,3]
[321153186,1711914646646,-1000.0,0.00053,120]
[321153187,1711914646656,-1000.0,0.00053,120]
[321153188,1711914646665,-1756.5,0.000535,120]
[321153189,1711914646674,-854.60635026,0.00053946,2]
[321153190,1711914646683,-3829.41,0.00054,117]
[321153191,1711914646692,-8257.4,0.00054,117]
[321153192,1711914646701,-151.0,0.00054,120]
[321153193,1711914646711,-1265.0,0.00054,120]
[321153194,1711914646721,-152.42,0.000541,7]
[321153195,1711914646730,-152.42,0.000541,7]
[321153196,1711914646739,-154.08,0.000541,7]
[321153197,1711914646748,-154.08,0.000541,7]
[321153198,1711914646757,-154.08,0.000541,7]
[321153199,1711914646766,-154.08,0.000541,7]
[321153200,1711914646775,-153.68,0.00054338,2]
[321153201,1711914646785,-241.77,0.00054497,2]
[321153202,1711914646795,-205.18,0.00054665,120]
[321153203,1711914646804,-601.59,0.00054794,120]
[321153204,1711914646813,-500.0,0.00054794,120]
[321153205,1711914646822,-500.0,0.00054794,120]
[321153206,1711914646831,-500.0,0.00054794,120]
[321153208,1711914646841,-750.95,0.00054794,120]
[321153209,1711914646852,-2477.15,0.00054794,120]
[321153210,1711914646862,-500.0,0.00054794,120]
[321153211,1711914646871,-500.0,0.00054794,120]
[321153212,1711914646881,-500.0,0.00054794,120]
[321153213,1711914646891,-500.0,0.00054794,120]
[321153214,1711914646901,-500.0,0.00054794,120]
[321153215,1711914646911,-812.23,0.00054794,120]
[321153216,1711914646922,-666.43,0.00054794,120]
[321153217,1711914646931,-500.0,0.00054794,120]
[321153218,1711914646941,-3210.06,0.00054794,120]
[321153219,1711914646952,-500.0,0.00054794,120]
[321153220,1711914646963,-500.0,0.00054794,120]
[321153221,1711914646974,-882.85,0.00054794,120]
[321153222,1711914646984,-574.7,0.00054794,120]
[321153223,1711914646995,-1657.67,0.00054794,120]
[321153224,1711914647005,-500.0,0.00054794,120]
[321153225,1711914647015,-500.0,0.00054794,120]
[321153226,1711914647025,-2960.71,0.00054794,120]
[321153227,1711914647034,-500.0,0.00054794,120]
[321153228,1711914647043,-500.0,0.00054794,120]
[321153229,1711914647052,-500.0,0.00054794,120]
[321153230,1711914647061,-500.0,0.00054794,120]
[321153231,1711914647070,-500.0,0.00054794,120]
[321153232,1711914647080,-500.0,0.00054794,120]
[321153233,1711914647089,-5921.22,0.00054794,120]
[321153234,1711914647098,-160.0,0.00054801,120]
[321153235,1711914647107,-349.39838432,0.00054965,2]
[321153236,1711914647116,-500.0,0.00054965,120]
[321153237,1711914647127,-500.0,0.00054965,120]
[321153238,1711914647137,-500.0,0.00054965,120]
[321153239,1711914647147,-500.0,0.00054965,120]
[321153240,1711914647157,-802.66,0.00054965,120]
[321153241,1711914647167,-1503.62,0.00054965,120]
[321153242,1711914647177,-1252.91,0.00054965,120]
[321153243,1711914647187,-1074.78,0.00054965,120]
[321153244,1711914647196,-500.0,0.00054965,120]
[321153245,1711914647206,-500.0,0.00054965,120]
[321153246,1711914647216,-500.0,0.00054965,120]
[321153247,1711914647226,-397.76,0.00054965,120]
[321153248,1711914647236,-994.44,0.00054965,120]
[321153249,1711914647246,-692.84,0.00054965,120]
[321153250,1711914647256,-2078.86,0.00054965,120]
[321153251,1711914647266,-964.75,0.00054965,120]
[321153252,1711914647276,-2066.98,0.00054965,120]
[321153253,1711914647287,-500.0,0.00054965,120]
[321153254,1711914647297,-1422.36,0.00054965,120]
[321153255,1711914647306,-1277.34,0.00054965,120]
[321153256,1711914647317,-1033.56,0.00054965,120]
[321153257,1711914647327,-1788.93,0.00054965,120]
[321153258,1711914647338,-3339.43,0.00054965,120]
[321153259,1711914647348,-500.0,0.00054965,120]
[321153260,1711914647358,-500.0,0.00054965,120]
[321153261,1711914647368,-2109.97,0.00054965,120]
[321153262,1711914647378,-4963.1,0.00054965,120]
[321153263,1711914647388,-500.0,0.00054965,120]
[321153264,1711914647398,-805.37,0.00054965,120]
[321153265,1711914647407,-513.08,0.00054965,120]
[321153266,1711914647416,-500.0,0.00054965,120]
[321153267,1711914647426,-789.66,0.00054965,21]
[321153268,1711914647435,-522.28,0.00054965,120]
[321153269,1711914647445,-500.0,0.00054965,120]
[321153270,1711914647454,-561.01,0.00054965,120]
[321153271,1711914647467,-95232.6151,0.00054967,2]
[321153272,1711914647477,-4975.80818363,0.00055,2]
[321153273,1711914647487,-16314.87102378,0.00055064,4]
[321153274,1711914647497,-157.27631021,0.00055064,4]
[321153275,1711914647507,-155.0,0.00055064,4]
[321153276,1711914647516,-500.0,0.00055066,120]
[321153277,1711914647526,-500.0,0.00055066,120]
[321153278,1711914647537,-500.0,0.00055066,120]
[321153279,1711914647547,-600.88450499,0.00055066,120]
[321153280,1711914647557,-500.0,0.00055066,120]
[321153281,1711914647568,-500.0,0.00055066,120]
[321153282,1711914647577,-434.77,0.00055066,120]
[321153283,1711914647586,-500.0,0.00055066,120]
[321153284,1711914647596,-500.0,0.00055066,120]
[321153285,1711914647607,-500.0,0.00055066,120]
[321153286,1711914647616,-500.0,0.00055066,120]
[321153287,1711914647625,-500.0,0.00055066,120]
[321153288,1711914647635,-500.0,0.00055066,120]
[321153289,1711914647644,-500.0,0.00055066,120]
[321153290,1711914647654,-500.0,0.00055066,120]
[321153291,1711914647664,-500.0,0.00055066,120]
[321153292,1711914647673,-500.0,0.00055066,120]
[321153293,1711914647682,-500.0,0.00055066,120]
[321153294,1711914647692,-500.0,0.00055066,120]
[321153295,1711914647701,-500.0,0.00055066,120]
[321153296,1711914647711,-500.0,0.00055066,120]
[321153297,1711914647720,-467.03369267,0.00055066,120]
[321153298,1711914647730,-500.0,0.00055066,120]
[321153299,1711914647740,-365.01999995,0.00055067,4]
[321153300,1711914647750,-601.59,0.00055068,120]
[321153301,1711914647759,-500.0,0.00055068,120]
[321153302,1711914647770,-500.0,0.00055068,120]
[321153303,1711914647780,-750.95,0.00055068,120]